[Event "*** Titled Tuesday Blitz"]
[Site "Chess.com"]
[Date "2020.12.29"]
[Round "11"]
[White "Blitzking642"]
[Black "karinachess1"]
[Result "1/2-1/2"]
[WhiteElo "2300"]
[BlackElo "2457"]
[TimeControl "180+1"]
[EndTime "12:06:42 PST"]
[Termination "Game drawn - insufficient material"]

1. e4 {[%clk 0:02:49.9]} 1... d6 {[%clk 0:02:37.5]} 2. d4 {[%clk 0:02:49.2]}
2... Nf6 {[%clk 0:02:35]} 3. Nc3 {[%clk 0:02:48.5]} 3... Nbd7 {[%clk 0:02:35.5]}
4. Nf3 {[%clk 0:02:46.8]} 4... e5 {[%clk 0:02:35.9]} 5. Bc4 {[%clk 0:02:46.4]}
5... Be7 {[%clk 0:02:35.9]} 6. O-O {[%clk 0:02:44]} 6... O-O {[%clk 0:02:36]} 7.
Re1 {[%clk 0:02:42.4]} 7... c6 {[%clk 0:02:36.5]} 8. a4 {[%clk 0:02:42]} 8... b6
{[%clk 0:02:37]} 9. h3 {[%clk 0:02:18]} 9... a6 {[%clk 0:02:36.4]} 10. d5 {[%clk
0:02:12.1]} 10... Bb7 {[%clk 0:02:35.7]} 11. dxc6 {[%clk 0:02:07.8]} 11... Bxc6
{[%clk 0:02:36.6]} 12. Bg5 {[%clk 0:02:03.8]} 12... Qc7 {[%clk 0:02:32.2]} 13.
Bb3 {[%clk 0:01:56.5]} 13... b5 {[%clk 0:02:31.1]} 14. axb5 {[%clk 0:01:55]}
14... axb5 {[%clk 0:02:32]} 15. Rxa8 {[%clk 0:01:53.8]} 15... Rxa8 {[%clk
0:02:32.9]} 16. Bxf6 {[%clk 0:01:43.6]} 16... Nxf6 {[%clk 0:02:27.7]} 17. Nd5
{[%clk 0:01:42.1]} 17... Bxd5 {[%clk 0:02:21.7]} 18. Bxd5 {[%clk 0:01:41.2]}
18... Nxd5 {[%clk 0:02:09.4]} 19. Qxd5 {[%clk 0:01:40.6]} 19... Rc8 {[%clk
0:02:03.5]} 20. c3 {[%clk 0:01:40.2]} 20... Qc4 {[%clk 0:01:59.3]} 21. Rd1
{[%clk 0:01:29.8]} 21... h6 {[%clk 0:01:15.2]} 22. Qxc4 {[%clk 0:01:24.7]} 22...
Rxc4 {[%clk 0:01:09.4]} 23. Nd2 {[%clk 0:01:24.6]} 23... Ra4 {[%clk 0:01:09]}
24. Kf1 {[%clk 0:01:11.9]} 24... Ra2 {[%clk 0:01:03]} 25. Rb1 {[%clk 0:01:10.3]}
25... Bg5 {[%clk 0:00:57.7]} 26. Ke2 {[%clk 0:01:06.3]} 26... Kf8 {[%clk
0:00:55.5]} 27. Kd3 {[%clk 0:00:56.5]} 27... Ke7 {[%clk 0:00:50]} 28. Nf3 {[%clk
0:00:49.1]} 28... Ke6 {[%clk 0:00:44.6]} 29. Nxg5+ {[%clk 0:00:44.2]} 29... hxg5
{[%clk 0:00:45.5]} 30. Kc2 {[%clk 0:00:43.3]} 30... g6 {[%clk 0:00:39.1]} 31.
Rd1 {[%clk 0:00:35.4]} 31... Ra4 {[%clk 0:00:38.9]} 32. f3 {[%clk 0:00:35.2]}
32... f5 {[%clk 0:00:39]} 33. Kd3 {[%clk 0:00:32.7]} 33... d5 {[%clk 0:00:33.5]}
34. exd5+ {[%clk 0:00:32.4]} 34... Kxd5 {[%clk 0:00:34.4]} 35. Kc2+ {[%clk
0:00:30.9]} 35... Ke6 {[%clk 0:00:33.4]} 36. Rd8 {[%clk 0:00:30.2]} 36... e4
{[%clk 0:00:32.1]} 37. Rb8 {[%clk 0:00:27.2]} 37... exf3 {[%clk 0:00:27.2]} 38.
gxf3 {[%clk 0:00:28.1]} 38... Rf4 {[%clk 0:00:26.9]} 39. Rxb5 {[%clk 0:00:23.9]}
39... Rxf3 {[%clk 0:00:26.7]} 40. Rb6+ {[%clk 0:00:24]} 40... Kf7 {[%clk
0:00:16.7]} 41. c4 {[%clk 0:00:24]} 41... Rxh3 {[%clk 0:00:15.7]} 42. c5 {[%clk
0:00:24.2]} 42... g4 {[%clk 0:00:12.8]} 43. c6 {[%clk 0:00:20.6]} 43... Ke7
{[%clk 0:00:12.7]} 44. c7 {[%clk 0:00:17.4]} 44... Kd7 {[%clk 0:00:12.8]} 45.
Rc6 {[%clk 0:00:15.7]} 45... Kc8 {[%clk 0:00:12.6]} 46. b4 {[%clk 0:00:10.1]}
46... g3 {[%clk 0:00:12.8]} 47. b5 {[%clk 0:00:09.1]} 47... g2 {[%clk
0:00:10.7]} 48. b6 {[%clk 0:00:05.3]} 48... Rh8 {[%clk 0:00:04.8]} 49. Rxg6
{[%clk 0:00:05]} 49... Kb7 {[%clk 0:00:04.2]} 50. Rxg2 {[%clk 0:00:03.4]} 50...
Kxb6 {[%clk 0:00:03.9]} 51. Rg7 {[%clk 0:00:03.5]} 51... Rf8 {[%clk 0:00:03.1]}
52. Kd3 {[%clk 0:00:03]} 52... f4 {[%clk 0:00:03.7]} 53. Ke2 {[%clk 0:00:03]}
53... f3+ {[%clk 0:00:04.6]} 54. Kf2 {[%clk 0:00:03.3]} 54... Rc8 {[%clk
0:00:04.9]} 55. Rg3 {[%clk 0:00:03.3]} 55... Rxc7 {[%clk 0:00:05.8]} 56. Rxf3
{[%clk 0:00:03.8]} 56... Rc2+ {[%clk 0:00:06.2]} 57. Kg3 {[%clk 0:00:04.2]}
57... Rc6 {[%clk 0:00:07.1]} 58. Kg4 {[%clk 0:00:04.5]} 58... Kc7 {[%clk
0:00:08]} 59. Kf4 {[%clk 0:00:04.9]} 59... Kb6 {[%clk 0:00:08.9]} 60. Ke4 {[%clk
0:00:05.5]} 60... Kb5 {[%clk 0:00:09.5]} 61. Kf4 {[%clk 0:00:06.4]} 61... Rc4+
{[%clk 0:00:10.4]} 62. Kg5 {[%clk 0:00:06.3]} 62... Rc5+ {[%clk 0:00:11.3]} 63.
Rf5 {[%clk 0:00:06.7]} 63... Kc4 {[%clk 0:00:12.2]} 64. Rxc5+ {[%clk 0:00:06.5]}
64... Kxc5 {[%clk 0:00:12.4]} 1/2-1/2

[Event "*** Titled Tuesday Blitz"]
[Site "Chess.com"]
[Date "2020.12.29"]
[Round "11"]
[White "Logman74"]
[Black "Skatchkov_V"]
[Result "0-1"]
[WhiteElo "2384"]
[BlackElo "2511"]
[TimeControl "180+1"]
[EndTime "12:06:44 PST"]
[Termination "Skatchkov_V won on time"]

1. e4 {[%clk 0:03:00.9]} 1... e5 {[%clk 0:02:59.7]} 2. Nf3 {[%clk 0:03:00.3]}
2... d5 {[%clk 0:03:00.4]} 3. Nxe5 {[%clk 0:02:58.5]} 3... Bd6 {[%clk
0:03:00.7]} 4. d4 {[%clk 0:02:52]} 4... dxe4 {[%clk 0:03:00.2]} 5. Bf4 {[%clk
0:02:49.4]} 5... Nf6 {[%clk 0:02:58.7]} 6. Nc3 {[%clk 0:02:47.2]} 6... O-O
{[%clk 0:02:58.4]} 7. Bc4 {[%clk 0:02:46.8]} 7... Nc6 {[%clk 0:02:58.3]} 8. Nxc6
{[%clk 0:02:45.5]} 8... bxc6 {[%clk 0:02:59.1]} 9. Bxd6 {[%clk 0:02:38.5]} 9...
cxd6 {[%clk 0:03:00]} 10. d5 {[%clk 0:02:38.5]} 10... c5 {[%clk 0:02:56.5]} 11.
O-O {[%clk 0:02:36.2]} 11... Rb8 {[%clk 0:02:56.3]} 12. b3 {[%clk 0:02:35.2]}
12... Qe7 {[%clk 0:02:54.4]} 13. Re1 {[%clk 0:02:32]} 13... Qe5 {[%clk
0:02:54.5]} 14. Qd2 {[%clk 0:02:21.2]} 14... Ng4 {[%clk 0:02:44.6]} 15. f4
{[%clk 0:02:10.7]} 15... e3 {[%clk 0:02:35.7]} 16. fxe5 {[%clk 0:02:01.2]} 16...
exd2 {[%clk 0:02:36.6]} 17. Re2 {[%clk 0:01:55.4]} 17... Nxe5 {[%clk 0:02:34.8]}
18. Rxd2 {[%clk 0:01:54.7]} 18... Nxc4 {[%clk 0:02:35.3]} 19. bxc4 {[%clk
0:01:54.3]} 19... a6 {[%clk 0:02:35.9]} 20. Ne4 {[%clk 0:01:49]} 20... Rd8
{[%clk 0:02:33.7]} 21. Re2 {[%clk 0:01:49.1]} 21... Bf5 {[%clk 0:02:33.8]} 22.
Rf1 {[%clk 0:01:42.2]} 22... Bxe4 {[%clk 0:02:29.6]} 23. Rxe4 {[%clk 0:01:41.9]}
23... Re8 {[%clk 0:02:30.5]} 24. Rfe1 {[%clk 0:01:41.1]} 24... Rxe4 {[%clk
0:02:30.4]} 25. Rxe4 {[%clk 0:01:41.7]} 25... Kf8 {[%clk 0:02:31.3]} 26. Re3
{[%clk 0:01:40.7]} 26... Rb1+ {[%clk 0:02:26.9]} 27. Kf2 {[%clk 0:01:38.5]}
27... Rb2 {[%clk 0:02:27.8]} 28. Ra3 {[%clk 0:01:24.7]} 28... Rxc2+ {[%clk
0:02:26.4]} 29. Kf3 {[%clk 0:01:24.8]} 29... Rxc4 {[%clk 0:02:22.9]} 30. Rxa6
{[%clk 0:01:24.8]} 30... Ke7 {[%clk 0:02:23.3]} 31. Ra7+ {[%clk 0:01:21.8]}
31... Kf6 {[%clk 0:02:22.1]} 32. Rd7 {[%clk 0:01:21.8]} 32... Ke5 {[%clk
0:02:09.4]} 33. Rxf7 {[%clk 0:01:19.4]} 33... Rc3+ {[%clk 0:02:09.6]} 34. Kg4
{[%clk 0:01:18.3]} 34... Rc2 {[%clk 0:02:08.3]} 35. Kh3 {[%clk 0:01:14.3]} 35...
Kxd5 {[%clk 0:01:18.6]} 36. Rxg7 {[%clk 0:01:13.6]} 36... Rxa2 {[%clk
0:01:18.8]} 37. Rxh7 {[%clk 0:01:13.6]} 37... c4 {[%clk 0:01:19.5]} 38. Rc7
{[%clk 0:01:12.7]} 38... Ra5 {[%clk 0:01:19.6]} 39. g4 {[%clk 0:01:10.6]} 39...
Rc5 {[%clk 0:01:19.4]} 40. Ra7 {[%clk 0:00:57.8]} 40... c3 {[%clk 0:01:18.6]}
41. Ra1 {[%clk 0:00:57]} 41... c2 {[%clk 0:01:17]} 42. Rc1 {[%clk 0:00:57.2]}
42... Kd4 {[%clk 0:01:17.6]} 43. g5 {[%clk 0:00:56]} 43... Kd3 {[%clk
0:01:17.1]} 44. Kg4 {[%clk 0:00:43.8]} 44... Kd2 {[%clk 0:01:16.6]} 45. Rg1
{[%clk 0:00:41.4]} 45... Re5 {[%clk 0:01:12.6]} 46. h4 {[%clk 0:00:37.9]} 46...
Re1 {[%clk 0:01:12.2]} 47. Rg2+ {[%clk 0:00:37.4]} 47... Re2 {[%clk 0:01:12.5]}
48. Rg1 {[%clk 0:00:37.6]} 48... d5 {[%clk 0:01:10.4]} 49. g6 {[%clk 0:00:36.7]}
49... c1=Q {[%clk 0:01:05.8]} 50. Rxc1 {[%clk 0:00:35.2]} 50... Kxc1 {[%clk
0:01:06.7]} 51. Kf3 {[%clk 0:00:25.6]} 51... Re1 {[%clk 0:01:05.2]} 52. h5
{[%clk 0:00:22.8]} 52... Rg1 {[%clk 0:01:02.4]} 53. Ke3 {[%clk 0:00:16.8]} 53...
Kc2 {[%clk 0:00:49.3]} 54. Kf4 {[%clk 0:00:12.6]} 54... d4 {[%clk 0:00:47.4]}
55. Kf5 {[%clk 0:00:13]} 55... d3 {[%clk 0:00:47.8]} 56. h6 {[%clk 0:00:13.4]}
56... d2 {[%clk 0:00:43.7]} 57. h7 {[%clk 0:00:13.2]} 57... d1=Q {[%clk
0:00:42.4]} 58. h8=Q {[%clk 0:00:13.2]} 58... Qg4+ {[%clk 0:00:42]} 59. Ke5
{[%clk 0:00:11.5]} 59... Re1+ {[%clk 0:00:40.9]} 60. Kd5 {[%clk 0:00:10.7]}
60... Qf5+ {[%clk 0:00:40.3]} 61. Kc4 {[%clk 0:00:10]} 61... Re4+ {[%clk
0:00:40]} 0-1

[Event "*** Titled Tuesday Blitz"]
[Site "Chess.com"]
[Date "2020.12.29"]
[Round "11"]
[White "rududuyk"]
[Black "Ariadna_Atreides"]
[Result "0-1"]
[WhiteElo "2219"]
[BlackElo "2083"]
[TimeControl "180+1"]
[EndTime "12:06:46 PST"]
[Termination "Ariadna_Atreides won by resignation"]

1. e4 {[%clk 0:03:00.9]} 1... c5 {[%clk 0:02:55.1]} 2. Nc3 {[%clk 0:03:01.2]}
2... Nc6 {[%clk 0:02:53.8]} 3. f4 {[%clk 0:03:01.5]} 3... e6 {[%clk 0:02:48]} 4.
Nf3 {[%clk 0:03:02]} 4... d5 {[%clk 0:02:47.4]} 5. Bb5 {[%clk 0:03:02.3]} 5...
d4 {[%clk 0:02:42.2]} 6. Ne2 {[%clk 0:02:55.1]} 6... Bd7 {[%clk 0:02:40.2]} 7.
a4 {[%clk 0:02:46]} 7... a6 {[%clk 0:02:39.3]} 8. Bc4 {[%clk 0:02:45.7]} 8...
Rb8 {[%clk 0:02:38.6]} 9. d3 {[%clk 0:02:39.7]} 9... Nf6 {[%clk 0:02:37.5]} 10.
O-O {[%clk 0:02:39.2]} 10... Be7 {[%clk 0:02:37.1]} 11. Qe1 {[%clk 0:02:21.8]}
11... O-O {[%clk 0:02:33]} 12. Qg3 {[%clk 0:02:13.5]} 12... b5 {[%clk
0:02:32.8]} 13. Bb3 {[%clk 0:02:09.5]} 13... Na5 {[%clk 0:02:29.8]} 14. Ba2
{[%clk 0:02:06.3]} 14... c4 {[%clk 0:02:29.9]} 15. Nexd4 {[%clk 0:01:56.5]}
15... Bc5 {[%clk 0:02:28.7]} 16. Be3 {[%clk 0:01:56]} 16... Bc8 {[%clk
0:02:26.8]} 17. Bf2 {[%clk 0:01:45.1]} 17... Nh5 {[%clk 0:02:17.6]} 18. Qg5
{[%clk 0:01:20.6]} 18... Qxg5 {[%clk 0:02:09.5]} 19. fxg5 {[%clk 0:01:20.4]}
19... cxd3 {[%clk 0:02:06.1]} 20. cxd3 {[%clk 0:01:16.4]} 20... Nf4 {[%clk
0:02:04.3]} 21. Rfd1 {[%clk 0:01:02.7]} 21... b4 {[%clk 0:02:00.2]} 22. Rac1
{[%clk 0:01:00.1]} 22... Bb6 {[%clk 0:01:58.7]} 23. Nc6 {[%clk 0:00:56]} 23...
Ne2+ {[%clk 0:01:46.1]} 24. Kf1 {[%clk 0:00:54.1]} 24... Nxc1 {[%clk 0:01:43.3]}
25. Nxb8 {[%clk 0:00:53.6]} 25... Bxf2 {[%clk 0:01:38.8]} 26. Rxc1 {[%clk
0:00:52.3]} 26... Ba7 {[%clk 0:01:36.7]} 27. Nc6 {[%clk 0:00:51.4]} 27... Nxc6
{[%clk 0:01:21.3]} 28. Rxc6 {[%clk 0:00:52.3]} 28... Bb7 {[%clk 0:01:10.3]} 29.
Rc7 {[%clk 0:00:50.4]} 29... Rb8 {[%clk 0:01:10.4]} 30. Ne5 {[%clk 0:00:41.5]}
30... Bb6 {[%clk 0:01:02.8]} 31. Rc1 {[%clk 0:00:35.6]} 31... Bd4 {[%clk
0:00:53.5]} 32. Nc4 {[%clk 0:00:29.7]} 32... Rc8 {[%clk 0:00:50.3]} 33. Rd1
{[%clk 0:00:25]} 33... Bc6 {[%clk 0:00:42.4]} 34. Bb3 {[%clk 0:00:21.9]} 34...
e5 {[%clk 0:00:39.3]} 35. Ke2 {[%clk 0:00:19.8]} 35... Bd7 {[%clk 0:00:38.8]}
36. Ne3 {[%clk 0:00:16]} 36... Bxb2 {[%clk 0:00:33.3]} 37. Nd5 {[%clk
0:00:16.4]} 37... Kf8 {[%clk 0:00:23.2]} 38. Rf1 {[%clk 0:00:16]} 38... Be6
{[%clk 0:00:21.8]} 39. Bc4 {[%clk 0:00:13.3]} 39... Bd4 {[%clk 0:00:18.9]} 40.
h4 {[%clk 0:00:11.7]} 40... Rb8 {[%clk 0:00:18.6]} 41. Bxa6 {[%clk 0:00:08.9]}
41... b3 {[%clk 0:00:17.2]} 42. Bc4 {[%clk 0:00:08]} 42... b2 {[%clk 0:00:16.8]}
43. Rb1 {[%clk 0:00:08.6]} 43... Rb4 {[%clk 0:00:14.5]} 44. Bb5 {[%clk
0:00:07.3]} 44... Bxd5 {[%clk 0:00:12.6]} 45. exd5 {[%clk 0:00:08.2]} 45... Ke7
{[%clk 0:00:11.6]} 46. g4 {[%clk 0:00:07.1]} 46... Kd6 {[%clk 0:00:11.5]} 47.
Bc6 {[%clk 0:00:06.9]} 47... Rb3 {[%clk 0:00:09.9]} 48. a5 {[%clk 0:00:05.8]}
48... Ra3 {[%clk 0:00:09.8]} 49. Kd2 {[%clk 0:00:04.8]} 49... Rxa5 {[%clk
0:00:09.4]} 50. Kc2 {[%clk 0:00:05.2]} 50... Rc5+ {[%clk 0:00:08.6]} 51. Kd2
{[%clk 0:00:05.8]} 51... Ra5 {[%clk 0:00:08.2]} 52. Kc2 {[%clk 0:00:06]} 52...
Kc5 {[%clk 0:00:06.8]} 53. h5 {[%clk 0:00:05.8]} 53... Kb4 {[%clk 0:00:06.6]}
54. g6 {[%clk 0:00:05.6]} 54... hxg6 {[%clk 0:00:05.7]} 55. hxg6 {[%clk
0:00:06.5]} 55... fxg6 {[%clk 0:00:05.8]} 56. Kd2 {[%clk 0:00:06.3]} 56... Kb3
{[%clk 0:00:04.9]} 57. d6 {[%clk 0:00:06.2]} 57... Ka2 {[%clk 0:00:02.3]} 58.
Bd5+ {[%clk 0:00:05.5]} 58... Kxb1 {[%clk 0:00:01.6]} 59. d7 {[%clk 0:00:05.9]}
59... Rxd5 {[%clk 0:00:01.5]} 0-1

[Event "*** Titled Tuesday Blitz"]
[Site "Chess.com"]
[Date "2020.12.29"]
[Round "11"]
[White "chessuriel"]
[Black "CM_rui"]
[Result "1/2-1/2"]
[WhiteElo "2246"]
[BlackElo "2347"]
[TimeControl "180+1"]
[EndTime "12:06:49 PST"]
[Termination "Game drawn by stalemate"]

1. e4 {[%clk 0:03:00.9]} 1... e5 {[%clk 0:03:00.2]} 2. Nf3 {[%clk 0:03:00.9]}
2... Nc6 {[%clk 0:03:00.2]} 3. Bb5 {[%clk 0:03:01]} 3... a6 {[%clk 0:03:00.3]}
4. Ba4 {[%clk 0:03:00.4]} 4... Nf6 {[%clk 0:03:00.7]} 5. O-O {[%clk 0:03:00.2]}
5... Be7 {[%clk 0:03:00.5]} 6. Re1 {[%clk 0:03:00.6]} 6... b5 {[%clk 0:03:00.7]}
7. Bb3 {[%clk 0:03:00.3]} 7... O-O {[%clk 0:03:01]} 8. d4 {[%clk 0:02:58]} 8...
exd4 {[%clk 0:02:52.8]} 9. c3 {[%clk 0:02:57.2]} 9... d5 {[%clk 0:02:46.1]} 10.
exd5 {[%clk 0:02:52.2]} 10... Nxd5 {[%clk 0:02:47]} 11. cxd4 {[%clk 0:02:51.9]}
11... Bg4 {[%clk 0:02:44.7]} 12. Nc3 {[%clk 0:02:51.8]} 12... Nb6 {[%clk
0:02:26.9]} 13. d5 {[%clk 0:02:43.2]} 13... Na5 {[%clk 0:02:26.7]} 14. Bc2
{[%clk 0:02:41.8]} 14... g6 {[%clk 0:02:12.8]} 15. h3 {[%clk 0:02:26.7]} 15...
Bc8 {[%clk 0:02:04.3]} 16. Bh6 {[%clk 0:02:07.4]} 16... Re8 {[%clk 0:02:04.3]}
17. Qd4 {[%clk 0:02:06.5]} 17... Bf8 {[%clk 0:01:53.8]} 18. Bg5 {[%clk
0:01:40.1]} 18... Qd7 {[%clk 0:01:26]} 19. Rxe8 {[%clk 0:01:30]} 19... Qxe8
{[%clk 0:01:25.4]} 20. Re1 {[%clk 0:01:29.7]} 20... Qd7 {[%clk 0:01:17.4]} 21.
Ne5 {[%clk 0:01:27.3]} 21... Bg7 {[%clk 0:00:53]} 22. Qh4 {[%clk 0:00:38.6]}
22... Qd6 {[%clk 0:00:42.4]} 23. Be7 {[%clk 0:00:33]} 23... Qxe5 {[%clk
0:00:19.1]} 24. Rxe5 {[%clk 0:00:31.7]} 24... Bxe5 {[%clk 0:00:20]} 25. Bf6
{[%clk 0:00:30]} 25... Bxf6 {[%clk 0:00:19.8]} 26. Qxf6 {[%clk 0:00:30.5]} 26...
Bb7 {[%clk 0:00:19.6]} 27. Be4 {[%clk 0:00:23.4]} 27... Re8 {[%clk 0:00:19.1]}
28. h4 {[%clk 0:00:22.9]} 28... h5 {[%clk 0:00:15.9]} 29. Bxg6 {[%clk
0:00:21.9]} 29... fxg6 {[%clk 0:00:13.1]} 30. Qxg6+ {[%clk 0:00:22.4]} 30... Kf8
{[%clk 0:00:13.7]} 31. Qf6+ {[%clk 0:00:21.7]} 31... Kg8 {[%clk 0:00:14]} 32.
Qg5+ {[%clk 0:00:21.5]} 32... Kf8 {[%clk 0:00:12.9]} 33. Qxh5 {[%clk 0:00:21.3]}
33... Nac4 {[%clk 0:00:10.8]} 34. Qh8+ {[%clk 0:00:19.7]} 34... Ke7 {[%clk
0:00:10.7]} 35. Qg7+ {[%clk 0:00:19.5]} 35... Kd8 {[%clk 0:00:11.2]} 36. h5
{[%clk 0:00:19.3]} 36... Kc8 {[%clk 0:00:07.1]} 37. h6 {[%clk 0:00:19.1]} 37...
Nxd5 {[%clk 0:00:06.9]} 38. Nxd5 {[%clk 0:00:17.8]} 38... Bxd5 {[%clk
0:00:07.8]} 39. h7 {[%clk 0:00:17.9]} 39... Nd6 {[%clk 0:00:02.9]} 40. h8=Q
{[%clk 0:00:17.7]} 40... Rxh8 {[%clk 0:00:02.7]} 41. Qxh8+ {[%clk 0:00:18.4]}
41... Kb7 {[%clk 0:00:03.6]} 42. Qe5 {[%clk 0:00:18.4]} 42... Bc6 {[%clk
0:00:03.5]} 43. g4 {[%clk 0:00:18.3]} 43... Nc4 {[%clk 0:00:04.4]} 44. Qd4
{[%clk 0:00:17.2]} 44... Nd6 {[%clk 0:00:04]} 45. g5 {[%clk 0:00:17.2]} 45...
Nf7 {[%clk 0:00:04.2]} 46. Qf6 {[%clk 0:00:17.4]} 46... Nd6 {[%clk 0:00:04.2]}
47. g6 {[%clk 0:00:17.3]} 47... Bd5 {[%clk 0:00:04.6]} 48. Qe5 {[%clk
0:00:16.9]} 48... Bg8 {[%clk 0:00:03.4]} 49. g7 {[%clk 0:00:16.3]} 49... Nc4
{[%clk 0:00:03.9]} 50. Qe8 {[%clk 0:00:16]} 50... Bd5 {[%clk 0:00:03.5]} 51.
g8=Q {[%clk 0:00:16.1]} 51... Bxg8 {[%clk 0:00:04.2]} 52. Qxg8 {[%clk
0:00:16.4]} 52... Nxb2 {[%clk 0:00:05.1]} 53. Qg2+ {[%clk 0:00:16.8]} 53... Kb6
{[%clk 0:00:05.1]} 54. Qe4 {[%clk 0:00:16.8]} 54... Nc4 {[%clk 0:00:06]} 55.
Qe6+ {[%clk 0:00:16.5]} 55... c6 {[%clk 0:00:05.9]} 56. f4 {[%clk 0:00:17]}
56... a5 {[%clk 0:00:05.4]} 57. f5 {[%clk 0:00:17.3]} 57... a4 {[%clk
0:00:05.4]} 58. f6 {[%clk 0:00:18.2]} 58... Na5 {[%clk 0:00:05.1]} 59. f7 {[%clk
0:00:18.6]} 59... b4 {[%clk 0:00:05.5]} 60. f8=Q {[%clk 0:00:18.6]} 60... b3
{[%clk 0:00:04.8]} 61. Qd8+ {[%clk 0:00:18.6]} 61... Kb5 {[%clk 0:00:04.8]} 62.
Qe5+ {[%clk 0:00:18.4]} 62... c5 {[%clk 0:00:05.7]} 63. Qxc5+ {[%clk 0:00:17.5]}
63... Kxc5 {[%clk 0:00:05.8]} 64. Qxa5+ {[%clk 0:00:18.2]} 64... Kc4 {[%clk
0:00:06.7]} 65. Qxa4+ {[%clk 0:00:18.2]} 65... Kc5 {[%clk 0:00:07.4]} 66. Qxb3
{[%clk 0:00:18.6]} 66... Kd6 {[%clk 0:00:08.1]} 67. a4 {[%clk 0:00:19.2]} 67...
Kc6 {[%clk 0:00:09]} 68. a5 {[%clk 0:00:20.1]} 68... Kd6 {[%clk 0:00:09.9]} 69.
a6 {[%clk 0:00:20.7]} 69... Kc6 {[%clk 0:00:10.8]} 70. a7 {[%clk 0:00:21.5]}
70... Kd6 {[%clk 0:00:11.7]} 71. a8=Q {[%clk 0:00:22]} 71... Kc7 {[%clk
0:00:12]} 72. Qaa2 {[%clk 0:00:21.2]} 72... Kd6 {[%clk 0:00:12.9]} 73. Qac2
{[%clk 0:00:21.5]} 73... Ke5 {[%clk 0:00:12.7]} 74. Qbd3 {[%clk 0:00:22.4]}
74... Kf4 {[%clk 0:00:13.6]} 75. Qce2 {[%clk 0:00:23.2]} 75... Kg5 {[%clk
0:00:13.9]} 76. Qdf3 {[%clk 0:00:24.1]} 76... Kh4 {[%clk 0:00:14.8]} 77. Qeg2
{[%clk 0:00:24.8]} 1/2-1/2

[Event "*** Titled Tuesday Blitz"]
[Site "Chess.com"]
[Date "2020.12.29"]
[Round "11"]
[White "Arseniy_Nesterov"]
[Black "jcibarra"]
[Result "1/2-1/2"]
[WhiteElo "2796"]
[BlackElo "2884"]
[TimeControl "180+1"]
[EndTime "12:06:51 PST"]
[Termination "Game drawn - insufficient material"]

1. d4 {[%clk 0:03:00.6]} 1... Nf6 {[%clk 0:03:00.1]} 2. c4 {[%clk 0:03:00.7]}
2... d6 {[%clk 0:03:00.5]} 3. Nc3 {[%clk 0:03:00.6]} 3... e5 {[%clk 0:03:00.8]}
4. Nf3 {[%clk 0:02:59.5]} 4... e4 {[%clk 0:03:00.9]} 5. Nd2 {[%clk 0:02:47]}
5... Qe7 {[%clk 0:03:00.9]} 6. Nb3 {[%clk 0:02:44.9]} 6... h6 {[%clk 0:02:59.4]}
7. Bf4 {[%clk 0:02:42.4]} 7... Nh5 {[%clk 0:02:58.2]} 8. Be3 {[%clk 0:02:28.8]}
8... c6 {[%clk 0:02:47.4]} 9. g3 {[%clk 0:02:11.5]} 9... f5 {[%clk 0:02:44.5]}
10. Bg2 {[%clk 0:02:07.8]} 10... g5 {[%clk 0:02:38.5]} 11. Qd2 {[%clk
0:01:41.4]} 11... Bg7 {[%clk 0:02:23.6]} 12. g4 {[%clk 0:01:24.3]} 12... Nf6
{[%clk 0:02:19]} 13. gxf5 {[%clk 0:01:23.1]} 13... Bxf5 {[%clk 0:02:19.9]} 14.
h4 {[%clk 0:01:18.4]} 14... g4 {[%clk 0:02:09.9]} 15. Bf4 {[%clk 0:01:10.6]}
15... Nh5 {[%clk 0:02:03.6]} 16. Bh2 {[%clk 0:01:04.8]} 16... g3 {[%clk
0:01:53]} 17. fxg3 {[%clk 0:00:51.4]} 17... e3 {[%clk 0:01:52]} 18. Qc1 {[%clk
0:00:42.8]} 18... O-O {[%clk 0:01:50.1]} 19. O-O {[%clk 0:00:39.4]} 19... Na6
{[%clk 0:01:46.3]} 20. Rf3 {[%clk 0:00:20.2]} 20... Nb4 {[%clk 0:01:36.9]} 21.
a3 {[%clk 0:00:15.2]} 21... Nc2 {[%clk 0:01:35.3]} 22. Rxf5 {[%clk 0:00:15.1]}
22... Nxa1 {[%clk 0:01:30.3]} 23. Rxf8+ {[%clk 0:00:15]} 23... Qxf8 {[%clk
0:01:30.7]} 24. Qxa1 {[%clk 0:00:10.2]} 24... Qf2+ {[%clk 0:01:31.3]} 25. Kh1
{[%clk 0:00:10.3]} 25... Nxg3+ {[%clk 0:01:31.9]} 26. Bxg3 {[%clk 0:00:10.6]}
26... Qxg3 {[%clk 0:01:32.8]} 27. Qg1 {[%clk 0:00:08.9]} 27... Qxh4+ {[%clk
0:01:17.7]} 28. Qh2 {[%clk 0:00:09.3]} 28... Qe1+ {[%clk 0:01:18.3]} 29. Qg1
{[%clk 0:00:09.7]} 29... Qh4+ {[%clk 0:01:16.8]} 30. Qh2 {[%clk 0:00:10.1]}
30... Qf6 {[%clk 0:01:08.4]} 31. Bf3 {[%clk 0:00:09.8]} 31... Rf8 {[%clk
0:01:04.5]} 32. Ne4 {[%clk 0:00:09.6]} 32... Qg6 {[%clk 0:01:04.8]} 33. Qg2
{[%clk 0:00:05.1]} 33... Qe6 {[%clk 0:00:58.6]} 34. d5 {[%clk 0:00:04.5]} 34...
cxd5 {[%clk 0:00:57.4]} 35. cxd5 {[%clk 0:00:05.4]} 35... Qe5 {[%clk 0:00:56.5]}
36. Nc1 {[%clk 0:00:05.7]} 36... Qxb2 {[%clk 0:00:52]} 37. Nd3 {[%clk
0:00:05.8]} 37... Qa1+ {[%clk 0:00:38.4]} 38. Kh2 {[%clk 0:00:06]} 38... Kh8
{[%clk 0:00:38.8]} 39. Qg3 {[%clk 0:00:03.7]} 39... Qxa3 {[%clk 0:00:26]} 40.
Qxd6 {[%clk 0:00:02.3]} 40... Qxd6+ {[%clk 0:00:21.1]} 41. Nxd6 {[%clk
0:00:03.2]} 41... a5 {[%clk 0:00:21.6]} 42. Nc4 {[%clk 0:00:03.2]} 42... a4
{[%clk 0:00:22.5]} 43. d6 {[%clk 0:00:03.5]} 43... b5 {[%clk 0:00:22.5]} 44. Na3
{[%clk 0:00:03.4]} 44... b4 {[%clk 0:00:20.1]} 45. Nxb4 {[%clk 0:00:02.5]} 45...
Be5+ {[%clk 0:00:20]} 46. Kg2 {[%clk 0:00:02.3]} 46... Bxd6 {[%clk 0:00:20.9]}
47. Nbc2 {[%clk 0:00:02.4]} 47... Rb8 {[%clk 0:00:16.3]} 48. Be4 {[%clk
0:00:01.4]} 48... Rc8 {[%clk 0:00:12.5]} 49. Kf3 {[%clk 0:00:01.2]} 49... Rc3
{[%clk 0:00:11.3]} 50. Nb5 {[%clk 0:00:01.7]} 50... Rb3 {[%clk 0:00:06.2]} 51.
Nxd6 {[%clk 0:00:01.7]} 51... a3 {[%clk 0:00:06.8]} 52. Nxa3 {[%clk 0:00:02.1]}
52... Rxa3 {[%clk 0:00:07.1]} 53. Nf5 {[%clk 0:00:03]} 53... h5 {[%clk
0:00:06.7]} 54. Nxe3 {[%clk 0:00:03.9]} 54... Kg7 {[%clk 0:00:07.4]} 55. Kf4
{[%clk 0:00:04.4]} 55... Kf6 {[%clk 0:00:06.9]} 56. Nd5+ {[%clk 0:00:04.7]}
56... Ke6 {[%clk 0:00:07.5]} 57. Bf3 {[%clk 0:00:04.4]} 57... Rxf3+ {[%clk
0:00:05.4]} 58. exf3 {[%clk 0:00:04.6]} 58... Kxd5 {[%clk 0:00:05.5]} 59. Kg5
{[%clk 0:00:05.5]} 59... Ke5 {[%clk 0:00:05.9]} 60. Kxh5 {[%clk 0:00:06]} 60...
Kf4 {[%clk 0:00:06.1]} 61. Kh4 {[%clk 0:00:06]} 61... Kxf3 {[%clk 0:00:06.2]}
1/2-1/2